[Event "*** Titled Tuesday 3|2 Blitz"]
[Site "Chess.com"]
[Date "2017.03.07"]
[Round "8"]
[White "rpragchess"]
[Black "ER404"]
[Result "0-1"]
[WhiteElo "2026"]
[BlackElo "2246"]
[TimeControl "180+2"]
[EndTime "14:48:04 PST"]
[Termination "ER404 won by resignation"]

1. e4 {[%clk 0:02:53.9]} 1... c6 {[%clk 0:03:01.2]} 2. d4 {[%clk 0:02:53.9]}
2... d5 {[%clk 0:03:02.8]} 3. Nd2 {[%clk 0:02:55]} 3... dxe4 {[%clk 0:03:04]} 4.
Nxe4 {[%clk 0:02:56.6]} 4... Nd7 {[%clk 0:03:05.6]} 5. Nf3 {[%clk 0:02:54.1]}
5... Ngf6 {[%clk 0:03:06.8]} 6. Neg5 {[%clk 0:02:55]} 6... e6 {[%clk 0:03:06.6]}
7. Bc4 {[%clk 0:02:55.2]} 7... Nb6 {[%clk 0:02:45.3]} 8. Bb3 {[%clk 0:02:54.9]}
8... h6 {[%clk 0:02:45.1]} 9. Nh3 {[%clk 0:02:53.8]} 9... g5 {[%clk 0:02:45.3]}
10. Ne5 {[%clk 0:02:51.8]} 10... Bd6 {[%clk 0:02:43.5]} 11. O-O {[%clk
0:02:51.6]} 11... a5 {[%clk 0:02:24.6]} 12. a4 {[%clk 0:02:50.9]} 12... Bxe5
{[%clk 0:02:06.3]} 13. dxe5 {[%clk 0:02:50.7]} 13... Qxd1 {[%clk 0:02:08.2]} 14.
Rxd1 {[%clk 0:02:51.1]} 14... Nfd7 {[%clk 0:02:07]} 15. f4 {[%clk 0:02:52.7]}
15... Nd5 {[%clk 0:01:59.8]} 16. fxg5 {[%clk 0:02:51]} 16... hxg5 {[%clk
0:02:01.7]} 17. Nxg5 {[%clk 0:02:52.4]} 17... Nxe5 {[%clk 0:01:45]} 18. Ne4
{[%clk 0:02:54.3]} 18... f5 {[%clk 0:01:29.7]} 19. Nd6+ {[%clk 0:02:52]} 19...
Ke7 {[%clk 0:01:27]} 20. Nxc8+ {[%clk 0:02:49.8]} 20... Raxc8 {[%clk 0:01:28.9]}
21. c4 {[%clk 0:02:48.6]} 21... Nb4 {[%clk 0:01:12.7]} 22. c5 {[%clk 0:02:37.2]}
22... Rhg8 {[%clk 0:01:04.4]} 23. Re1 {[%clk 0:02:26.3]} 23... Nf3+ {[%clk
0:01:04.7]} 24. Kf2 {[%clk 0:02:24.3]} 24... Nxe1 {[%clk 0:01:06.2]} 25. Kxe1
{[%clk 0:02:22.5]} 25... Rxg2 {[%clk 0:01:06.2]} 26. Bf4 {[%clk 0:02:19.9]}
26... Nd3+ {[%clk 0:01:06.6]} 27. Kf1 {[%clk 0:02:19.3]} 27... Rf2+ {[%clk
0:01:08]} 0-1

[Event "*** Titled Tuesday 3|2 Blitz"]
[Site "Chess.com"]
[Date "2017.03.07"]
[Round "8"]
[White "gkchesstiger"]
[Black "Elshan1985"]
[Result "0-1"]
[WhiteElo "2629"]
[BlackElo "2506"]
[TimeControl "180+2"]
[EndTime "14:48:20 PST"]
[Termination "Elshan1985 won by resignation"]

1. d4 {[%clk 0:03:02]} 1... e6 {[%clk 0:02:59.8]} 2. Nf3 {[%clk 0:03:03.1]} 2...
c5 {[%clk 0:02:59.2]} 3. e4 {[%clk 0:03:01.7]} 3... cxd4 {[%clk 0:02:59.6]} 4.
Nxd4 {[%clk 0:03:02.9]} 4... Nc6 {[%clk 0:03:00.2]} 5. Nc3 {[%clk 0:03:03.5]}
5... Qc7 {[%clk 0:02:59.6]} 6. Be2 {[%clk 0:03:04.5]} 6... Nf6 {[%clk
0:02:58.8]} 7. O-O {[%clk 0:03:06]} 7... a6 {[%clk 0:03:00.1]} 8. Be3 {[%clk
0:03:07.2]} 8... Bb4 {[%clk 0:02:55.3]} 9. Na4 {[%clk 0:03:08]} 9... Be7 {[%clk
0:02:56.4]} 10. c4 {[%clk 0:03:07.5]} 10... Nxe4 {[%clk 0:02:54.6]} 11. c5
{[%clk 0:03:07.6]} 11... O-O {[%clk 0:02:54.1]} 12. Rc1 {[%clk 0:03:07.9]} 12...
Nf6 {[%clk 0:02:50.5]} 13. Bf3 {[%clk 0:03:05.3]} 13... g6 {[%clk 0:02:49.2]}
14. Re1 {[%clk 0:03:04.1]} 14... e5 {[%clk 0:02:46.1]} 15. Bg5 {[%clk
0:02:55.9]} 15... Nxd4 {[%clk 0:02:41.6]} 16. Qxd4 {[%clk 0:02:56.9]} 16... exd4
{[%clk 0:02:28.7]} 17. Rxe7 {[%clk 0:02:57.8]} 17... Ne8 {[%clk 0:02:21.6]} 18.
Nb6 {[%clk 0:02:57.5]} 18... Rb8 {[%clk 0:02:16.7]} 19. g3 {[%clk 0:02:50.5]}
19... Ng7 {[%clk 0:02:15.2]} 20. Nd5 {[%clk 0:02:48.6]} 20... Qa5 {[%clk
0:02:12]} 21. Bf4 {[%clk 0:02:31.6]} 21... d6 {[%clk 0:01:57.6]} 22. cxd6 {[%clk
0:02:23.9]} 22... Be6 {[%clk 0:01:50]} 23. Nf6+ {[%clk 0:02:23.6]} 23... Kh8
{[%clk 0:01:50.5]} 24. d7 {[%clk 0:02:23.9]} 24... Rbd8 {[%clk 0:01:44.3]} 25.
g4 {[%clk 0:02:24.8]} 25... Qb4 {[%clk 0:01:30.8]} 26. Rxe6 {[%clk 0:02:13.3]}
26... fxe6 {[%clk 0:01:23.5]} 27. Be5 {[%clk 0:02:14.1]} 27... d3 {[%clk
0:01:15.7]} 28. Kg2 {[%clk 0:02:09.6]} 28... d2 {[%clk 0:01:15.1]} 29. Rd1
{[%clk 0:02:09.6]} 29... Qc5 {[%clk 0:01:13.2]} 30. Bc3 {[%clk 0:02:08.4]} 30...
Qxc3 {[%clk 0:01:14]} 31. bxc3 {[%clk 0:02:08.3]} 31... Rxf6 {[%clk 0:01:15.2]}
0-1

[Event "*** Titled Tuesday 3|2 Blitz"]
[Site "Chess.com"]
[Date "2017.03.07"]
[Round "8"]
[White "pedromartinez91"]
[Black "JeremDev"]
[Result "1-0"]
[WhiteElo "2338"]
[BlackElo "2221"]
[TimeControl "180+2"]
[EndTime "14:48:28 PST"]
[Termination "pedromartinez91 won by resignation"]

1. d4 {[%clk 0:03:02]} 1... Nf6 {[%clk 0:03:00.3]} 2. Nf3 {[%clk 0:03:02.9]}
2... c5 {[%clk 0:03:01.3]} 3. e3 {[%clk 0:03:00.8]} 3... b6 {[%clk 0:03:01.8]}
4. Be2 {[%clk 0:02:58.5]} 4... Bb7 {[%clk 0:03:02.6]} 5. O-O {[%clk 0:02:59.1]}
5... d6 {[%clk 0:03:03.1]} 6. b3 {[%clk 0:03:00]} 6... Nbd7 {[%clk 0:03:01.9]}
7. dxc5 {[%clk 0:03:01.1]} 7... Nxc5 {[%clk 0:03:01.7]} 8. Bb2 {[%clk
0:03:02.3]} 8... g6 {[%clk 0:03:03.1]} 9. Nbd2 {[%clk 0:03:02.5]} 9... Bg7
{[%clk 0:03:04.3]} 10. c4 {[%clk 0:03:03.1]} 10... O-O {[%clk 0:03:05.2]} 11.
Rc1 {[%clk 0:03:03.6]} 11... Nfe4 {[%clk 0:03:02.5]} 12. Bxg7 {[%clk 0:03:00.8]}
12... Kxg7 {[%clk 0:03:03.7]} 13. b4 {[%clk 0:02:58.6]} 13... Nxd2 {[%clk
0:03:04]} 14. Qxd2 {[%clk 0:02:53.3]} 14... Ne4 {[%clk 0:02:56.1]} 15. Qb2+
{[%clk 0:02:49.1]} 15... Nf6 {[%clk 0:02:55.3]} 16. Rfd1 {[%clk 0:02:46]} 16...
Qc8 {[%clk 0:02:47.1]} 17. Nd4 {[%clk 0:02:31.9]} 17... a5 {[%clk 0:02:34.5]}
18. a3 {[%clk 0:02:23.8]} 18... axb4 {[%clk 0:02:34.6]} 19. axb4 {[%clk
0:02:24.5]} 19... Kg8 {[%clk 0:02:33.5]} 20. Bf3 {[%clk 0:02:05.7]} 20... Ne4
{[%clk 0:02:17.4]} 21. Qc2 {[%clk 0:01:52.7]} 21... Ng5 {[%clk 0:02:05.5]} 22.
Bxb7 {[%clk 0:01:42.1]} 22... Qxb7 {[%clk 0:02:07.4]} 23. h4 {[%clk 0:01:41.9]}
23... Ne6 {[%clk 0:02:05.2]} 24. Nxe6 {[%clk 0:01:41.8]} 24... fxe6 {[%clk
0:02:07.1]} 25. Rd4 {[%clk 0:01:37.7]} 25... Rf5 {[%clk 0:02:02.2]} 26. Qe4
{[%clk 0:01:29.8]} 26... Qd7 {[%clk 0:01:45]} 27. Qxa8+ {[%clk 0:01:22.3]} 1-0

[Event "*** Titled Tuesday 3|2 Blitz"]
[Site "Chess.com"]
[Date "2017.03.07"]
[Round "8"]
[White "HaryKane"]
[Black "Alexander_Moskalenko"]
[Result "0-1"]
[WhiteElo "2297"]
[BlackElo "2695"]
[TimeControl "180+2"]
[EndTime "14:48:48 PST"]
[Termination "Alexander_Moskalenko won by resignation"]

1. e4 {[%clk 0:03:02]} 1... e5 {[%clk 0:02:47.8]} 2. Nf3 {[%clk 0:03:01.9]} 2...
Nc6 {[%clk 0:02:48.9]} 3. d4 {[%clk 0:03:03]} 3... exd4 {[%clk 0:02:49.5]} 4.
Bc4 {[%clk 0:03:03.2]} 4... Bc5 {[%clk 0:02:51.1]} 5. Ng5 {[%clk 0:03:02.9]}
5... Nh6 {[%clk 0:02:51.2]} 6. Nxf7 {[%clk 0:03:03.6]} 6... Nxf7 {[%clk
0:02:51.7]} 7. Bxf7+ {[%clk 0:03:05.5]} 7... Kxf7 {[%clk 0:02:53.1]} 8. Qh5+
{[%clk 0:03:07.1]} 8... g6 {[%clk 0:02:46.7]} 9. Qxc5 {[%clk 0:03:08.1]} 9... d6
{[%clk 0:02:48.6]} 10. Qb5 {[%clk 0:03:09.3]} 10... a6 {[%clk 0:02:48.8]} 11.
Qe2 {[%clk 0:03:10.1]} 11... Re8 {[%clk 0:02:48.6]} 12. O-O {[%clk 0:03:03.5]}
12... Kg8 {[%clk 0:02:49.3]} 13. f4 {[%clk 0:02:54.3]} 13... d5 {[%clk
0:02:41.4]} 14. e5 {[%clk 0:02:54.8]} 14... Bf5 {[%clk 0:02:42.9]} 15. g4 {[%clk
0:02:28.5]} 15... Be4 {[%clk 0:02:43.2]} 16. Nd2 {[%clk 0:02:29.6]} 16... Bxc2
{[%clk 0:02:44]} 17. Nf3 {[%clk 0:02:19]} 17... Be4 {[%clk 0:02:44.3]} 18. Ng5
{[%clk 0:02:18.8]} 18... d3 {[%clk 0:02:45.2]} 19. Qf2 {[%clk 0:02:19.5]} 19...
h6 {[%clk 0:02:40.9]} 20. Nf3 {[%clk 0:02:09]} 20... Kh7 {[%clk 0:02:34.2]} 21.
Be3 {[%clk 0:02:06.8]} 21... Rf8 {[%clk 0:02:33.3]} 22. Nd4 {[%clk 0:02:07.7]}
22... Nxe5 {[%clk 0:02:33.6]} 23. Ne6 {[%clk 0:02:06.3]} 23... Nxg4 {[%clk
0:02:32]} 24. Qg3 {[%clk 0:01:49.3]} 24... Nxe3 {[%clk 0:02:18.3]} 25. Nxf8+
{[%clk 0:01:37.5]} 25... Qxf8 {[%clk 0:02:17.9]} 26. Qxe3 {[%clk 0:01:39.1]}
26... c5 {[%clk 0:02:18.2]} 27. Rac1 {[%clk 0:01:37.7]} 27... b6 {[%clk
0:02:12.8]} 28. b4 {[%clk 0:01:38.3]} 28... Rc8 {[%clk 0:02:11.1]} 29. bxc5
{[%clk 0:01:36.7]} 29... bxc5 {[%clk 0:02:11.3]} 30. Rb1 {[%clk 0:01:36.1]}
30... Rc7 {[%clk 0:02:11.9]} 31. Rb6 {[%clk 0:01:32.9]} 31... c4 {[%clk
0:02:09.7]} 32. f5 {[%clk 0:01:32.1]} 32... gxf5 {[%clk 0:02:08.3]} 33. Rf4
{[%clk 0:01:26.9]} 33... Qg7+ {[%clk 0:01:58.7]} 34. Kf2 {[%clk 0:01:27.6]}
34... Qg2+ {[%clk 0:01:58.9]} 35. Ke1 {[%clk 0:01:28.9]} 35... d2+ {[%clk
0:01:58.2]} 36. Qxd2 {[%clk 0:01:29.6]} 36... Qg1+ {[%clk 0:01:59.3]} 37. Ke2
{[%clk 0:01:30.5]} 37... Qxb6 {[%clk 0:02:00]} 0-1

[Event "*** Titled Tuesday 3|2 Blitz"]
[Site "Chess.com"]
[Date "2017.03.07"]
[Round "8"]
[White "Buffy7"]
[Black "Dlugy"]
[Result "0-1"]
[WhiteElo "2497"]
[BlackElo "2660"]
[TimeControl "180+2"]
[EndTime "14:49:12 PST"]
[Termination "Dlugy won by resignation"]

1. c4 {[%clk 0:03:02]} 1... Nf6 {[%clk 0:02:58.6]} 2. g3 {[%clk 0:03:01.8]} 2...
g6 {[%clk 0:02:57]} 3. Bg2 {[%clk 0:03:02.7]} 3... Bg7 {[%clk 0:02:58.1]} 4. Nc3
{[%clk 0:03:03.3]} 4... O-O {[%clk 0:02:58.4]} 5. e3 {[%clk 0:03:04.7]} 5... c5
{[%clk 0:02:58.6]} 6. Nge2 {[%clk 0:03:02.7]} 6... Nc6 {[%clk 0:02:58.9]} 7. a3
{[%clk 0:03:04]} 7... a6 {[%clk 0:02:59.2]} 8. d4 {[%clk 0:02:45]} 8... cxd4
{[%clk 0:02:54.9]} 9. exd4 {[%clk 0:02:46.9]} 9... d6 {[%clk 0:02:54.1]} 10. O-O
{[%clk 0:02:42.5]} 10... Bd7 {[%clk 0:02:53.1]} 11. b4 {[%clk 0:02:41.1]} 11...
Rb8 {[%clk 0:02:18.7]} 12. c5 {[%clk 0:02:35.6]} 12... dxc5 {[%clk 0:02:13.3]}
13. dxc5 {[%clk 0:02:36.8]} 13... Bf5 {[%clk 0:02:05.5]} 14. Bf4 {[%clk
0:02:03.2]} 14... Rc8 {[%clk 0:02:02.5]} 15. Qxd8 {[%clk 0:01:56.6]} 15... Rfxd8
{[%clk 0:02:02.8]} 16. Rad1 {[%clk 0:01:58.2]} 16... h6 {[%clk 0:01:49.6]} 17.
Na4 {[%clk 0:01:51.8]} 17... Rxd1 {[%clk 0:01:38.8]} 18. Rxd1 {[%clk 0:01:52.1]}
18... Bc2 {[%clk 0:01:38.7]} 19. Nb6 {[%clk 0:01:52.9]} 19... Bxd1 {[%clk
0:01:39.7]} 20. Nxc8 {[%clk 0:01:53.9]} 20... Bxe2 {[%clk 0:01:38.4]} 21. Bxc6
{[%clk 0:01:54.9]} 21... bxc6 {[%clk 0:01:36.2]} 22. Nxe7+ {[%clk 0:01:56.6]}
22... Kf8 {[%clk 0:01:37.5]} 23. Nxc6 {[%clk 0:01:58.5]} 23... Nd5 {[%clk
0:01:35.7]} 24. Bd6+ {[%clk 0:01:52.7]} 24... Ke8 {[%clk 0:01:36.1]} 25. f4
{[%clk 0:01:30.1]} 25... Bb5 {[%clk 0:01:14.7]} 26. Ne5 {[%clk 0:01:30.9]} 26...
Ne3 {[%clk 0:00:57.6]} 27. c6 {[%clk 0:01:23.7]} 27... Bxe5 {[%clk 0:00:56.5]}
28. Bxe5 {[%clk 0:01:25.6]} 28... Bxc6 {[%clk 0:00:56.7]} 29. h3 {[%clk
0:01:27.1]} 29... Nc4 {[%clk 0:00:57.1]} 0-1

[Event "*** Titled Tuesday 3|2 Blitz"]
[Site "Chess.com"]
[Date "2017.03.07"]
[Round "8"]
[White "aa175"]
[Black "Shivagami"]
[Result "1-0"]
[WhiteElo "1859"]
[BlackElo "1937"]
[TimeControl "180+2"]
[EndTime "14:49:56 PST"]
[Termination "aa175 won by resignation"]

1. e4 {[%clk 0:03:02]} 1... e5 {[%clk 0:02:58.5]} 2. Nf3 {[%clk 0:03:02.6]} 2...
Nc6 {[%clk 0:02:59.9]} 3. Bc4 {[%clk 0:03:03.3]} 3... Nf6 {[%clk 0:02:59.6]} 4.
Ng5 {[%clk 0:03:03.9]} 4... d5 {[%clk 0:02:59.2]} 5. exd5 {[%clk 0:03:05.8]}
5... Nxd5 {[%clk 0:03:00.5]} 6. Nxf7 {[%clk 0:03:05.5]} 6... Kxf7 {[%clk
0:02:58.2]} 7. Qf3+ {[%clk 0:03:06.4]} 7... Ke6 {[%clk 0:02:59.6]} 8. Nc3 {[%clk
0:02:50.3]} 8... Ne7 {[%clk 0:02:57.4]} 9. d4 {[%clk 0:02:47.6]} 9... c6 {[%clk
0:02:52.6]} 10. Bg5 {[%clk 0:02:42.1]} 10... h6 {[%clk 0:02:37.5]} 11. Bxe7
{[%clk 0:02:38.8]} 11... Bxe7 {[%clk 0:02:38]} 12. O-O-O {[%clk 0:02:35.1]}
12... Rf8 {[%clk 0:02:27.4]} 13. Qe4 {[%clk 0:02:36.1]} 13... Bg5+ {[%clk
0:02:21.4]} 14. Kb1 {[%clk 0:02:35.4]} 14... Bf6 {[%clk 0:02:01.1]} 15. dxe5
{[%clk 0:02:20.5]} 15... Bg5 {[%clk 0:01:58.7]} 16. Nxd5 {[%clk 0:02:13]} 16...
cxd5 {[%clk 0:01:59.5]} 17. Rxd5 {[%clk 0:02:13.9]} 17... Qe8 {[%clk 0:01:26.5]}
18. Rd8+ {[%clk 0:01:41.9]} 18... Ke7 {[%clk 0:01:25.3]} 19. Rxe8+ {[%clk
0:01:42.4]} 19... Rxe8 {[%clk 0:01:23]} 20. h4 {[%clk 0:01:43.2]} 20... Kf8
{[%clk 0:01:19.1]} 21. hxg5 {[%clk 0:01:43.6]} 21... hxg5 {[%clk 0:01:14.6]} 22.
Rh8+ {[%clk 0:01:43.7]} 22... Ke7 {[%clk 0:01:14.6]} 23. Rxe8+ {[%clk
0:01:45.6]} 23... Kxe8 {[%clk 0:01:16.5]} 24. Qg6+ {[%clk 0:01:46.3]} 24... Kd7
{[%clk 0:01:15.6]} 25. Qe6+ {[%clk 0:01:45.6]} 25... Kd8 {[%clk 0:01:13.9]} 26.
Qg8+ {[%clk 0:01:42.4]} 26... Kc7 {[%clk 0:01:13.8]} 27. Qxg7+ {[%clk
0:01:42.1]} 27... Kc6 {[%clk 0:01:13.9]} 28. Qf6+ {[%clk 0:01:41.5]} 28... Kc5
{[%clk 0:01:13.5]} 29. Be6 {[%clk 0:01:31.1]} 29... Bxe6 {[%clk 0:01:11.9]} 30.
Qxe6 {[%clk 0:01:33]} 30... Rh8 {[%clk 0:01:11.8]} 31. Qd6+ {[%clk 0:01:33.3]}
31... Kb5 {[%clk 0:01:12.1]} 32. Qd5+ {[%clk 0:01:30.1]} 32... Kb6 {[%clk
0:01:12]} 33. g4 {[%clk 0:01:30.1]} 33... Kc7 {[%clk 0:01:10.2]} 34. e6 {[%clk
0:01:30.3]} 34... Rd8 {[%clk 0:01:08.6]} 35. Qe5+ {[%clk 0:01:31.3]} 35... Kc8
{[%clk 0:01:08.8]} 36. Qc5+ {[%clk 0:01:25.4]} 36... Kb8 {[%clk 0:01:08.7]} 37.
b3 {[%clk 0:01:26.8]} 37... b6 {[%clk 0:01:08.3]} 38. Qe7 {[%clk 0:01:26.4]}
38... Rd1+ {[%clk 0:01:06.3]} 39. Kb2 {[%clk 0:01:27.2]} 39... Kc8 {[%clk
0:01:07.6]} 40. Qxa7 {[%clk 0:01:26.1]} 1-0

[Event "*** Titled Tuesday 3|2 Blitz"]
[Site "Chess.com"]
[Date "2017.03.07"]
[Round "8"]
[White "MattyDPerrine"]
[Black "kereswasbest"]
[Result "1-0"]
[WhiteElo "2221"]
[BlackElo "2053"]
[TimeControl "180+2"]
[EndTime "14:50:35 PST"]
[Termination "MattyDPerrine won by resignation"]

1. Nf3 {[%clk 0:03:02]} 1... Nf6 {[%clk 0:02:59.3]} 2. g3 {[%clk 0:02:50.5]}
2... g6 {[%clk 0:03:01.2]} 3. Bg2 {[%clk 0:02:51.8]} 3... Bg7 {[%clk 0:03:03.1]}
4. O-O {[%clk 0:02:53.4]} 4... O-O {[%clk 0:03:03.6]} 5. d4 {[%clk 0:02:53.5]}
5... d5 {[%clk 0:03:05]} 6. c4 {[%clk 0:02:54.7]} 6... c6 {[%clk 0:03:06.1]} 7.
Nbd2 {[%clk 0:02:55.7]} 7... Bf5 {[%clk 0:03:03.7]} 8. b3 {[%clk 0:02:51.7]}
8... Nbd7 {[%clk 0:03:02.7]} 9. Bb2 {[%clk 0:02:52.9]} 9... Ne4 {[%clk
0:03:01.6]} 10. Nh4 {[%clk 0:02:51.4]} 10... e6 {[%clk 0:02:47.5]} 11. f3 {[%clk
0:02:42]} 11... Nxd2 {[%clk 0:02:44.6]} 12. Qxd2 {[%clk 0:02:43.9]} 12... Bf6
{[%clk 0:02:39.8]} 13. Nxf5 {[%clk 0:02:44.2]} 13... exf5 {[%clk 0:02:28.9]} 14.
e4 {[%clk 0:02:41.8]} 14... fxe4 {[%clk 0:02:19.1]} 15. fxe4 {[%clk 0:02:42.5]}
15... dxe4 {[%clk 0:01:58.8]} 16. Bxe4 {[%clk 0:02:36.8]} 16... Nc5 {[%clk
0:01:56]} 17. Bg2 {[%clk 0:02:30.7]} 17... Ne6 {[%clk 0:01:27.5]} 18. Rxf6
{[%clk 0:02:29.5]} 18... Qxf6 {[%clk 0:01:23.7]} 19. d5 {[%clk 0:02:30.7]} 19...
Qg5 {[%clk 0:00:33.5]} 20. Qc3 {[%clk 0:02:27.5]} 20... f6 {[%clk 0:00:22.8]}
21. dxe6 {[%clk 0:02:27.1]} 21... Rae8 {[%clk 0:00:18.9]} 22. Re1 {[%clk
0:02:22.6]} 22... Qc5+ {[%clk 0:00:18.4]} 23. Qd4 {[%clk 0:02:04.8]} 23... Qxd4+
{[%clk 0:00:14.4]} 24. Bxd4 {[%clk 0:02:06.7]} 24... f5 {[%clk 0:00:10.1]} 25.
Bxa7 {[%clk 0:02:01.5]} 25... Rf6 {[%clk 0:00:11.3]} 26. e7 {[%clk 0:01:57.9]}
26... Kf7 {[%clk 0:00:11.8]} 27. Bc5 {[%clk 0:01:57.9]} 27... Re6 {[%clk
0:00:12.9]} 28. Rxe6 {[%clk 0:01:53.1]} 28... Kxe6 {[%clk 0:00:14.7]} 29. a4
{[%clk 0:01:44.5]} 29... g5 {[%clk 0:00:15.7]} 30. Kf2 {[%clk 0:01:39.3]} 30...
h5 {[%clk 0:00:15.8]} 31. h4 {[%clk 0:01:36.5]} 31... g4 {[%clk 0:00:15.5]} 32.
Ke3 {[%clk 0:01:37.4]} 32... Kf6 {[%clk 0:00:13]} 33. Kf4 {[%clk 0:01:36.6]}
33... Ke6 {[%clk 0:00:12.3]} 34. a5 {[%clk 0:01:36.8]} 1-0

[Event "*** Titled Tuesday 3|2 Blitz"]
[Site "Chess.com"]
[Date "2017.03.07"]
[Round "8"]
[White "Outsmiter"]
[Black "AnthonyWirig"]
[Result "0-1"]
[WhiteElo "2104"]
[BlackElo "2547"]
[TimeControl "180+2"]
[EndTime "14:50:43 PST"]
[Termination "AnthonyWirig won by resignation"]

1. e4 {[%clk 0:03:02]} 1... c5 {[%clk 0:02:54]} 2. Nc3 {[%clk 0:03:02.6]} 2...
Nc6 {[%clk 0:02:54.8]} 3. f4 {[%clk 0:03:04]} 3... e6 {[%clk 0:02:53.7]} 4. Nf3
{[%clk 0:03:05.3]} 4... d5 {[%clk 0:02:54.6]} 5. Bb5 {[%clk 0:03:06]} 5... Ne7
{[%clk 0:02:54.9]} 6. d3 {[%clk 0:03:04.2]} 6... a6 {[%clk 0:02:55.9]} 7. Bxc6+
{[%clk 0:03:04.1]} 7... Nxc6 {[%clk 0:02:57.8]} 8. O-O {[%clk 0:03:05.1]} 8...
Be7 {[%clk 0:02:58.4]} 9. Qe1 {[%clk 0:03:05.8]} 9... O-O {[%clk 0:02:58.3]} 10.
Kh1 {[%clk 0:02:54.5]} 10... Kh8 {[%clk 0:02:51.6]} 11. a3 {[%clk 0:02:55]}
11... b5 {[%clk 0:02:51.9]} 12. Bd2 {[%clk 0:02:41.7]} 12... Rb8 {[%clk
0:02:50.2]} 13. Ne5 {[%clk 0:02:36.3]} 13... Nd4 {[%clk 0:02:46.1]} 14. Rc1
{[%clk 0:02:35]} 14... f6 {[%clk 0:02:45.3]} 15. Ng4 {[%clk 0:02:28.4]} 15... b4
{[%clk 0:02:42]} 16. axb4 {[%clk 0:02:25.5]} 16... cxb4 {[%clk 0:02:43.9]} 17.
Ne2 {[%clk 0:02:24]} 17... dxe4 {[%clk 0:02:44.1]} 18. dxe4 {[%clk 0:02:23.8]}
18... Bb7 {[%clk 0:02:39.7]} 19. Ng3 {[%clk 0:02:16.8]} 19... b3 {[%clk
0:02:33.1]} 20. cxb3 {[%clk 0:01:58.4]} 20... Nxb3 {[%clk 0:02:29.4]} 21. Rd1
{[%clk 0:01:59.5]} 21... Nxd2 {[%clk 0:02:29]} 22. Rxd2 {[%clk 0:02:00.1]} 22...
Qe8 {[%clk 0:02:24.5]} 23. f5 {[%clk 0:01:58.8]} 23... e5 {[%clk 0:02:20]} 24.
Ne3 {[%clk 0:01:58.5]} 24... Bb4 {[%clk 0:02:20.5]} 25. Qe2 {[%clk 0:01:52.6]}
25... Bxd2 {[%clk 0:02:20.8]} 26. Qxd2 {[%clk 0:01:54.5]} 26... Qa4 {[%clk
0:02:20.7]} 27. Nh5 {[%clk 0:01:53.1]} 27... Rbd8 {[%clk 0:02:10.5]} 28. Qc1
{[%clk 0:01:47.7]} 28... Rc8 {[%clk 0:02:11.5]} 29. Qe1 {[%clk 0:01:44.5]} 29...
Qxe4 {[%clk 0:02:09.7]} 30. Qg3 {[%clk 0:01:41.8]} 30... Rf7 {[%clk 0:02:09.5]}
31. Rd1 {[%clk 0:01:27.3]} 31... a5 {[%clk 0:02:08.8]} 32. Ra1 {[%clk
0:01:10.6]} 32... a4 {[%clk 0:02:08.5]} 33. h3 {[%clk 0:01:11]} 33... Rg8 {[%clk
0:02:06.7]} 34. Qf2 {[%clk 0:01:08.6]} 34... Bc6 {[%clk 0:02:04.4]} 35. Ng3
{[%clk 0:01:08.9]} 35... Qf4 {[%clk 0:02:04.5]} 36. Rf1 {[%clk 0:01:03.2]} 36...
Qxf2 {[%clk 0:02:04.9]} 37. Rxf2 {[%clk 0:01:05.1]} 37... Rb8 {[%clk 0:02:06.1]}
38. Rc2 {[%clk 0:01:04.9]} 38... Be8 {[%clk 0:02:03]} 39. Rd2 {[%clk 0:01:02.1]}
39... Rd7 {[%clk 0:02:02.9]} 40. Rc2 {[%clk 0:01:00]} 40... Rd3 {[%clk
0:02:02.1]} 41. Ngf1 {[%clk 0:00:58.8]} 41... h6 {[%clk 0:02:03.5]} 42. Kg1
{[%clk 0:00:59]} 42... Rdb3 {[%clk 0:02:04.5]} 43. Nd1 {[%clk 0:00:58.5]} 43...
Bb5 {[%clk 0:02:01.1]} 44. Nd2 {[%clk 0:00:58.6]} 44... Be2 {[%clk 0:01:53.6]}
45. Nxb3 {[%clk 0:00:42.6]} 45... Bxd1 {[%clk 0:01:52.1]} 46. Rd2 {[%clk
0:00:36.1]} 46... Bxb3 {[%clk 0:01:46.2]} 47. Kf2 {[%clk 0:00:35.2]} 47... Kh7
{[%clk 0:01:45.4]} 48. Kg3 {[%clk 0:00:36.5]} 48... Rb4 {[%clk 0:01:46.2]} 49.
h4 {[%clk 0:00:36.9]} 49... Rf4 {[%clk 0:01:46.9]} 0-1

[Event "*** Titled Tuesday 3|2 Blitz"]
[Site "Chess.com"]
[Date "2017.03.07"]
[Round "8"]
[White "WanderingPuppet"]
[Black "chessking2151"]
[Result "0-1"]
[WhiteElo "2329"]
[BlackElo "2391"]
[TimeControl "180+2"]
[EndTime "14:50:50 PST"]
[Termination "chessking2151 won on time"]

1. e4 {[%clk 0:03:02]} 1... e5 {[%clk 0:02:57.8]} 2. Nf3 {[%clk 0:02:53.9]} 2...
Nc6 {[%clk 0:02:58.5]} 3. Bb5 {[%clk 0:02:55]} 3... f5 {[%clk 0:02:58.9]} 4. d4
{[%clk 0:02:41.3]} 4... fxe4 {[%clk 0:02:58.1]} 5. Nxe5 {[%clk 0:02:35.4]} 5...
Nxe5 {[%clk 0:02:57.4]} 6. dxe5 {[%clk 0:02:35.4]} 6... c6 {[%clk 0:02:57.1]} 7.
Nc3 {[%clk 0:01:22.9]} 7... cxb5 {[%clk 0:02:56.5]} 8. O-O {[%clk 0:01:22.9]}
8... d5 {[%clk 0:02:49]} 9. Nxd5 {[%clk 0:01:18]} 9... Be6 {[%clk 0:02:47.1]}
10. c4 {[%clk 0:01:03.8]} 10... Rc8 {[%clk 0:02:39.9]} 11. Be3 {[%clk
0:00:54.1]} 11... bxc4 {[%clk 0:02:34.1]} 12. Qa4+ {[%clk 0:00:50.1]} 12... Qd7
{[%clk 0:02:33.1]} 13. Qxd7+ {[%clk 0:00:38.7]} 13... Kxd7 {[%clk 0:02:19.2]}
14. Nf4 {[%clk 0:00:39.2]} 14... Bc5 {[%clk 0:02:16.4]} 15. Rfd1+ {[%clk
0:00:35.2]} 15... Ke7 {[%clk 0:02:04.5]} 16. Bxc5+ {[%clk 0:00:34.1]} 16... Rxc5
{[%clk 0:02:03.3]} 17. Rd6 {[%clk 0:00:35.7]} 17... Rxe5 {[%clk 0:01:55.1]} 18.
Rad1 {[%clk 0:00:36.3]} 18... Nf6 {[%clk 0:01:56]} 19. h3 {[%clk 0:00:29.6]}
19... Rc8 {[%clk 0:01:53.6]} 20. g4 {[%clk 0:00:24.9]} 20... Rc6 {[%clk
0:01:52.6]} 21. Rd8 {[%clk 0:00:23.9]} 21... Nd7 {[%clk 0:01:45.5]} 22. Nxe6
{[%clk 0:00:20.1]} 22... Rd6 {[%clk 0:01:10.8]} 23. Rxd6 {[%clk 0:00:13.3]}
23... Kxd6 {[%clk 0:01:12.2]} 24. Nf4 {[%clk 0:00:05.2]} 24... Ke7 {[%clk
0:01:05.7]} 25. Rh8 {[%clk 0:00:04.5]} 25... Nf6 {[%clk 0:00:52.4]} 26. Ra8
{[%clk 0:00:04.1]} 26... Ra5 {[%clk 0:00:52]} 27. a3 {[%clk 0:00:04.3]} 27... a6
{[%clk 0:00:51.5]} 28. Rc8 {[%clk 0:00:04.2]} 28... g5 {[%clk 0:00:33.9]} 0-1